Cogmind - Beta 17.1 @@@ ROGUE MODE // 2026.09.17 @ 18:52:04 Player: cel Result: Destroyed self with Mini Grenade Launcher Performance ------------- Evolutions (1) 500 Regions Visited (4) 800 Robots Destroyed (25) 125 Value Destroyed (665) 665 Prototype IDs (0) 0 Alien Tech Used (0) 0 Bonus (0) 0 TOTAL SCORE: 2090 Bonus ------- None Cogmind --------- Core Integrity 0/400 Matter 287/300 Energy 264/265 System Corruption 8% Temperature Warm (126) Movement Rolling (90) Location -9/Mines Parts ------- > --- POWER (1) -------- Reinforced Ion Engine > --- PROPULSION (3) --- Wheel Compact Wheel > --- UTILITY (3) ------ Medium Storage Unit ECM Suite Tractor Beam > --- WEAPON (2) ------- Assault Rifle Mini Grenade Launcher > --- INVENTORY (10) --- Deuterium Engine Deuterium Engine Deuterium Engine Deuterium Engine Aluminum Leg Large Matter Pod (150) Compact Matter Pod (150) Mining Laser Blade Saw Peak State ------------ > --- POWER ------------ Ion Engine > --- PROPULSION ------- Aluminum Leg Aluminum Leg Aluminum Leg > --- UTILITY ---------- Small Storage Unit Improved Terrain Scanner Terrain Scan Processor > --- WEAPON ----------- Medium Laser Heavy Assault Rifle > --- INVENTORY -------- Light Ion Engine Compact Wheel Compact Matter Pod Tractor Beam Assault Rifle Mini Grenade Launcher Mining Laser [Rating: 14] Favorites ----------- Power Ion Engine Engine Ion Engine Propulsion Aluminum Leg Leg Aluminum Leg Wheel Wheel Utility Small Storage Unit Device Improved Terrain Scanner Storage Small Storage Unit Processor Terrain Scan Processor Protection Light Armor Plating Weapon Assault Rifle Energy Gun Medium Laser Ballistic Gun Assault Rifle Launcher Mini Grenade Launcher Slashing Weapon Blade Saw Build | -11 -10 -10 -9 -9 ------- Run | Yrd Mat Min Mat Min Slots Evolved 2 | . . . 2 . Power . | . . . . . Propulsion 1 | . . . 1 . Utility 1 | . . . 1 . Weapon . | . . . . . Parts Attached 27 | 7 . . 18 2 Power 5 | 1 . . 4 . Engine 5 | 1 . . 4 . Core . | . . . . . Reactor . | . . . . . Propulsion 9 | 2 . . 5 2 Treads . | . . . . . Leg 6 | 2 . . 4 . Wheel 3 | . . . 1 2 Hover . | . . . . . Flight . | . . . . . Utility 8 | 2 . . 6 . Device 3 | 1 . . 2 . Storage 2 | 1 . . 1 . Processor 1 | . . . 1 . Hackware . | . . . . . Protection 2 | . . . 2 . Artifact . | . . . . . Weapon 5 | 2 . . 3 . Energy Gun 1 | 1 . . . . Energy Cannon . | . . . . . Ballistic Gun 2 | 1 . . 1 . Ballistic Cannon . | . . . . . Launcher 1 | . . . 1 . Special Weapon . | . . . . . Impact Weapon . | . . . . . Slashing Weapon 1 | . . . 1 . Piercing Weapon . | . . . . . Special Melee Weapon . | . . . . . Unidentified Prototypes . | . . . . . Parts Lost 9 | . . . 7 2 Power . | . . . . . Propulsion 4 | . . . 2 2 Utility 3 | . . . 3 . Weapon 2 | . . . 2 . Highest Loss Streak 2 | . . . 2 2 To Critical Strikes . | . . . . . Average Backups 7 | 4 8 7 8 9 Power 1 | . 1 1 2 4 Propulsion 2 | 2 4 2 1 1 Utility 2 | . 1 3 2 2 Weapon 1 | . 1 1 2 2 Tool/Special . | . . . . . Unused Backups 10 | . . 2 1 7 Power 4 | . . . . 4 Propulsion 1 | . . 1 . . Utility 3 | . . 1 . 2 Weapon 2 | . . . 1 1 Tool/Special . | . . . . . Average Slot Usage (%) 96 | . 100 100 92 100 Engine 12 | . 14 14 10 11 Leg 28 | . 28 28 29 24 Wheel 1 | . . . 1 8 Device 14 | . 14 14 14 22 Storage 12 | . 14 14 11 11 Processor 1 | . . . 2 . Protection 1 | . . . 2 . Energy Gun 9 | . 14 14 5 . Ballistic Gun 12 | . 14 14 10 11 Launcher 1 | . . . 2 . Slashing Weapon 1 | . . . 1 11 Peak Build Rating 14 | 9 9 10 14 14 Average Rating 10 | 5 9 9 11 13 On Entrance 8 | . 9 9 10 14 Avg Prop Armor Cover (%) 8 | . . . 3 13 Naked Turns . | . . . . . Heaviest Build 27 | 15 15 15 27 27 Greatest Support 30 | 20 20 20 30 30 Greatest Overweight (x) 2 | 2 . . 1 2 Average Overweight (x) . | . . . . 1 Largest Inventory Capacity 10 | 8 8 8 10 10 Average Capacity 8 | 7 8 8 9 10 Most Carried 10 | 8 8 8 10 10 Average Carried 8 | 4 7 7 8 9 Final Capacity 10 | 8 8 8 10 10 Final Carried 9 | 8 8 8 9 9 Class Distribution -------------------- 55% | Mutant 45% | Scavenger-Mutant Dominant Class ---------------- Mutant | -10/Materials Mutant | -10/Mines Scavenger-Mutant | -9/Materials Scavenger-Mutant | -9/Mines Resources | -11 -10 -10 -9 -9 ----------- Run | Yrd Mat Min Mat Min Matter Collected 1095 | 282 . 150 471 192 Remotely 380 | . . . 188 192 Salvage Created 892 | 91 . . 746 55 Parts 61 | 10 . . 47 4 Haulers Intercepted . | . . . . . Recyclers Shooed 3 | 1 . . 2 . Parts Field Recycled . | . . . . . Retrieved Matter . | . . . . . Parts Self-Destructed . | . . . . . Prevented . | . . . . . Parts Restored . | . . . . . Kills | -11 -10 -10 -9 -9 ------- Run | Yrd Mat Min Mat Min Combat Hostiles Destroyed 18 | . . . 18 . Guns 18 | . . . 18 . Classes Destroyed 7 | 2 . . 5 . Tunneler 4 | 1 . . . 3 Recycler 1 | 1 . . . . Watcher 2 | . . . 2 . Swarmer 3 | . . . 3 . Grunt 8 | . . . 8 . Brawler 2 | . . . 2 . Sentry 5 | . . . 5 . Best Kill Streak 3 | 2 . . 3 2 Combat Bots Only 3 | . . . 3 . Max Kills in Single Turn 2 | 1 . . 2 1 Gunslinging 1 | . . . 1 . Exploded . | . . . . . Melee . | . . . . . Uniques/NPCs Destroyed . | . . . . . Combat | -11 -10 -10 -9 -9 -------- Run | Yrd Mat Min Mat Min Hostile Shots Fired 130 | . . . 123 7 Missed 30 | . . . 30 . Hits 100 | . . . 93 7 Melee 7 | . . . 7 . Projectile 93 | . . . 86 7 AOE 6 | . . . . 6 Critical Strikes 2 | . . . 2 . Damage Taken 1600 | . . . 1273 327 Core 400 | . . . 229 171 Absorbed by Shields . | . . . . . Core Remaining (%) 100 | 100 . 100 . . Volleys Fired 94 | 4 . . 78 12 Largest 2 | 2 . . 2 2 Hottest 73 | 70 . . 73 50 Shots Fired 148 | 8 . . 126 14 Gun 143 | 8 . . 123 12 Cannon . | . . . . . Launcher 5 | . . . 3 2 Special . | . . . . . Kinetic 87 | 4 . . 71 12 Thermal 56 | 4 . . 52 . Explosive 5 | . . . 3 2 Electromagnetic . | . . . . . Robot Hit Streak 12 | 3 . . 12 3 Robot Miss Streak 4 | 3 . . 4 2 Penetration Max . | . . . . . Secondary Targets 3 | . . . 3 . Max Gunslinging Chain 1 | . . . 1 . Shots Hit Robots 98 | 4 . . 87 7 Core Hits 47 | 3 . . 38 6 Critical Kills 1 | . . . 1 . Critical Parts Destroyed . | . . . . . Critical Strikes 5 | . . . 5 . Burn 4 | . . . 4 . Destroy 1 | . . . 1 . Melee Attacks . | . . . . . Impact . | . . . . . Slashing . | . . . . . Piercing . | . . . . . Sneak Attacks . | . . . . . Combat Hostiles . | . . . . . Follow-up Attacks . | . . . . . Damage Inflicted 1455 | 55 . . 1270 130 Guns 1242 | 55 . . 1107 80 Cannons . | . . . . . Explosions 213 | . . . 163 50 Melee . | . . . . . Ramming . | . . . . . Kinetic 790 | 42 . . 668 80 Thermal 452 | 13 . . 439 . Explosive 213 | . . . 163 50 Electromagnetic . | . . . . . Impact . | . . . . . Slashing . | . . . . . Piercing . | . . . . . Highest Corruption 8 | . . . 8 8 Average Corruption 5 | . . . 5 8 Corruption Purged . | . . . . . Corruption Blocked . | . . . . . Effects 19 | . . . 16 3 Message Errors 5 | . . . 4 1 Matter Fused 3 | . . . 3 . Heat Flow Errors 3 | . . . 2 1 Energy Discharges 2 | . . . 2 . Parts Rejected 1 | . . . 1 . Data Loss (minor) 4 | . . . 3 1 Misfires 1 | . . . 1 . Overload Shots . | . . . . . Overflow Damage . | . . . . . Projectiles . | . . . . . Explosions . | . . . . . Melee . | . . . . . Knockbacks . | . . . . . Impact . | . . . . . Kinetic . | . . . . . Secondary . | . . . . . Self-Inflicted Damage 121 | . . . 63 58 Shots 4 | . . . 2 2 Rammed . | . . . . . Targets Rammed . | . . . . . Kicked . | . . . . . Crushed . | . . . . . Highest Temperature 201 | 18 . . 201 135 Average Temperature 43 | 10 . . 44 130 Received Heat Transfer 354 | . . . 354 . Siege Activations . | . . . . . Martial Activations . | . . . . . Shielding Activations . | . . . . . Robots Disrupted . | . . . . . Combat Hostiles . | . . . . . Robots Corrupted . | . . . . . Combat Hostiles . | . . . . . Parts Fried . | . . . . . Impact Corruptions . | . . . . . Robots Melted . | . . . . . Combat Hostiles . | . . . . . Parts Melted 3 | . . . 3 . Heat Transferred 1628 | 37 . . 1591 . Parts Sabotaged . | . . . . . Parts Stolen . | . . . . . Parts Stripped . | . . . . . Power Chain Reactions . | . . . . . Alert | -11 -10 -10 -9 -9 ------- Run | Yrd Mat Min Mat Min Maximum Alert Level . | . . . . . Low Security (%) 100 | 100 100 100 100 100 Level 1 . | . . . . . Level 2 . | . . . . . Level 3 . | . . . . . Level 4 . | . . . . . Level 5 . | . . . . . High Security . | . . . . . Max Security . | . . . . . Peak Influence 102 | 5 . . 102 30 Initial 20 | . . . . 20 Average 29 | . . . 59 13 Influence Increases 508 | 10 . . 481 17 Destroy 0b10 Robot/C 360 | . . . 360 . Destroy 0b10 Robot/NC 35 | 10 . . 10 15 Destroy Leader 94 | . . . 94 . Destroy Structure 19 | . . . 17 2 Influence Decreases 506 | 10 . . 428 68 Entered New Map 33 | . . . . 33 Time Decay 403 | 10 . . 358 35 Lost Part 70 | . . . 70 . Squads Dispatched 1 | . . . 1 . Investigation 1 | . . . 1 . Extermination . | . . . . . Reinforcement . | . . . . . Assault . | . . . . . Garrison . | . . . . . Intercept . | . . . . . Searches Triggered . | . . . . . Construction Impeded . | . . . . . Haulers Reinforced . | . . . . . Active Scanning Responses . | . . . . . Cargo Convoy Interrupts . | . . . . . Stealth | -11 -10 -10 -9 -9 --------- Run | Yrd Mat Min Mat Min Distress Signals 1 | . . . 1 . Communications Jammed . | . . . . . Distress Signals . | . . . . . Times Spotted 34 | . . . 23 11 Peak Tracking Total 20 | . . . 4 20 Tactical Retreats 1 | . . . . 1 Traps | -11 -10 -10 -9 -9 ------- Run | Yrd Mat Min Mat Min Traps Triggered 2 | . . . 2 . Indirectly . | . . . . . Trap Hack Attempts . | . . . . . Triggered . | . . . . . Disarmed . | . . . . . Reprogrammed . | . . . . . Reused . | . . . . . Traps Extracted . | . . . . . Installed . | . . . . . Triggered . | . . . . . Machines | -11 -10 -10 -9 -9 ---------- Run | Yrd Mat Min Mat Min Machines Disabled . | . . . . . Max in Single Turn . | . . . . . Machines Repaired . | . . . . . Machines Dismantled . | . . . . . Machines Sabotaged . | . . . . . Overloaded Fab Kills . | . . . . . Hacking | -11 -10 -10 -9 -9 --------- Run | Yrd Mat Min Mat Min Machines Accessed 1 | . . . 1 . Terminals . | . . . . . Fabricators . | . . . . . Repair Stations . | . . . . . Recycling Units . | . . . . . Scanalyzers 1 | . . . 1 . Garrison Access . | . . . . . Total Hacks 1 | . . . 1 . Successful . | . . . . . Failed 1 | . . . 1 . Catastrophic . | . . . . . Database Lockouts . | . . . . . Manual . | . . . . . Terminals . | . . . . . Fabricators . | . . . . . Repair Stations . | . . . . . Recycling Units . | . . . . . Scanalyzers 1 | . . . 1 . Garrison Access . | . . . . . Terminal Hacks . | . . . . . Fabricator Hacks . | . . . . . Repair Station Hacks . | . . . . . Recycling Unit Hacks . | . . . . . Scanalyzer . | . . . . . Garrison Access Hacks . | . . . . . Unauthorized Hacks . | . . . . . Terminals . | . . . . . Fabricators . | . . . . . Repair Stations . | . . . . . Recycling Units . | . . . . . Scanalyzers . | . . . . . Garrison Access . | . . . . . Data Cores Recovered . | . . . . . Used . | . . . . . Hacking Detections . | . . . . . Full Trace Events . | . . . . . Feedback Events . | . . . . . Feedback Blocked . | . . . . . Robot Schematics Acquired . | . . . . . Robots Built . | . . . . . Authchips . | . . . . . Time . | . . . . . Total Robot Build Rating . | . . . . . Part Schematics Acquired . | . . . . . Parts Built . | . . . . . Authchips . | . . . . . Time . | . . . . . Total Part Build Rating . | . . . . . Part Studies Acquired . | . . . . . Parts Repaired . | . . . . . Time . | . . . . . Parts Recycled . | . . . . . Recycled Matter . | . . . . . Retrieved Matter . | . . . . . Retrieved Components . | . . . . . Parts Scanalyzed . | . . . . . Part Schematics Acquired . | . . . . . Parts Damaged . | . . . . . Bothacking | -11 -10 -10 -9 -9 ------------ Run | Yrd Mat Min Mat Min Used RIF Installer . | . . . . . Robots Hacked . | . . . . . Non-combat . | . . . . . Combat . | . . . . . Robot Hacks Applied . | . . . . . Relay Couplers Released . | . . . . . Fabnet Peak Effective % . | . . . . . Robots Rewired . | . . . . . Allies Hacked . | . . . . . Hacks Repelled . | . . . . . Allies | -11 -10 -10 -9 -9 -------- Run | Yrd Mat Min Mat Min Total Allies 1 | . . 1 . . Largest Group 1 | . . 1 . . Highest-Rated Group 31 | . . 31 . . Highest-Rated Ally 31 | . . 31 . . Total Orders . | . . . . . Ally Attacks . | . . . . . Total Damage . | . . . . . Kills . | . . . . . Allies Corrupted . | . . . . . Allies Melted . | . . . . . Intel | -11 -10 -10 -9 -9 ------- Run | Yrd Mat Min Mat Min Active Infowar (turns) 1566 | 17 45 675 738 91 Terrain 999 | 17 45 675 262 . ECM 567 | . . . 476 91 Robot Analysis Total . | . . . . . Derelict Logs Recovered 2 | . . 2 . . Drone Launches . | . . . . . Drone Recoveries . | . . . . . Exploration | -11 -10 -10 -9 -9 ------------- Run | Yrd Mat Min Mat Min Turns Passed 1756 | 88 45 675 857 91 Spaces Moved 1170 | 53 36 561 464 56 Core 12 | 12 . . . . Treads . | . . . . . Legs 1108 | 41 36 561 464 6 Wheels 50 | . . . . 50 Hover . | . . . . . Flight . | . . . . . Fastest Speed 50 | 50 120 120 120 105 Average Speed 119 | 109 120 120 121 110 Slowest Speed 190 | 190 120 120 190 120 Overloaded Moves . | . . . . . Propulsion Burnouts . | . . . . . Robots Hopped . | . . . . . Potential Cave-ins . | . . . . . Cave-ins Triggered . | . . . . . Exploration Rate (%) 38 | 3 13 99 59 20 Regions Visited 4 Branch Regions 2 Pre-discovered Areas 1 | . . 1 . . Known Exits Taken 1 | . . 1 . . Unknown Exits Taken 3 | 1 1 . 1 . Scrap Searched 2 | . . 1 . 1 Spaces Dug . | . . . . . Terrain Destroyed 21 | . . . 17 4 Melee . | . . . . . Projectile . | . . . . . AOE 21 | . . . 17 4 Terrain Rammed . | . . . . . Walls Destroyed . | . . . . . Machines Disabled . | . . . . . Actions | -11 -10 -10 -9 -9 --------- Run | Yrd Mat Min Mat Min Total 1376 | 72 39 564 629 72 Wait 49 | . . . 49 . Move 1166 | 52 35 560 463 56 Hop . | . . . . . Pick Up 22 | 9 2 2 8 1 Fast Attach 10 | 6 . . 4 . Attach 10 | 1 . . 8 1 Detach . | . . . . . Swap 12 | . . . 10 2 Drop 13 | . 2 2 9 . Fire 94 | 4 . . 78 12 Melee . | . . . . . Ram . | . . . . . Kick . | . . . . . Crush . | . . . . . Escape Stasis . | . . . . . Rewire . | . . . . . Trap . | . . . . . Miscellaneous . | . . . . . Route ------- -11/Scrapyard -10/Materials -10/Mines (discovered 3 exits: *Mat x2 / [*Sub]) -9/Materials -9/Mines History --------- Turn | Location | Event 28 | -11/Scrapyard | Discovered new exit (range 15) 89 | -11/Scrapyard | Entered Materials 113 | -10/Materials | Discovered new exit (range 16) 134 | -10/Materials | Entered Mines 145 | -10/Mines | Identified exit to Materials 281 | -10/Mines | Learned location of Zion (-7) 300 | -10/Mines | Build established: Mutant 445 | -10/Mines | Discovered exit to Materials (range 16) 469 | -10/Mines | Received a Mining Laser from a helpful Derelict 657 | -10/Mines | Found a hidden stash of uninstalled traps 698 | -10/Mines | Discovered new exit (range 6) 809 | -10/Mines | Entered Materials 809 | -9/Materials | Evolved 2 slots: Propulsion x1, Utility x1 1318 | -9/Materials | Build established: Scavenger-Mutant 1588 | -9/Materials | Core integrity fell below 50% 1648 | -9/Materials | Discovered new exit (range 16) 1666 | -9/Materials | Entered Mines 1741 | -9/Mines | Assembled infested the area 1756 | -9/Mines | Core integrity fell below 20% 1757 | -9/Mines | Destroyed self with Mini Grenade Launcher Last Messages --------------- K-01 Serf collects debris. FK =KKWDI0G 4TBTKEOVAZUVNVJ K-01 Serf collects debris. ALERT: Infestation in the mines, dispatching Demolisher response squad. K-01 Serf collects debris. Searching scrap... Found Hover Unit. Found Lgt. Ion Engine. Found 52 Matter. Aluminum Leg destroyed. Acquired 52 matter. K-01 Serf collects debris. C-45 Heavy ARC bursts open, deploying its payload. D-53 Grenadier unfolds itself. Aluminum Leg destroyed. Acquired 72 matter. System corrupted: Heat flow error (+154). Acquired 13 matter. Map ----- +----------------------------------------------------+ | | | | | ????????????????????????????###??????????????????? | | ???????????????????????????# #?????????????????? | | ???????????????????????????# #?????????????????? | | ???????????????????????????# ######????????????? | | ???????????????????????????# ##???????????? | | ???????????###?????????????# #???????????? | | ??????????## ????????????# ##??????????? | | ???????#### #???#####???# #??????????? | | ???????# #### =#???# #??????????? | | ???????# ## #??## #??????????? | | ????????????# #?## #??????????? | | ????????????# #?# ##?????????? | | ????????????## =### k #?????????? | | ?????????????### ! #??????????????? | | ???????????????## ##??????????????? | | ????????????????## #### #???????????????? | | ?????????????????# #?##u ##??????????????? | | ?????????????????# ##?# #??????????????? | | ???????????????? #### #??????????????? | | ?????????????? ## d% ##??????????????? | | ??????????????######## d #???????????????? | | ????????????????????## ##????????????????? | | ????????????????????# #?????????????????? | | ?????????????????????# @ #?????????????????? | | ???????????????????## ##?????????????????? | | ???????????????????#* #??????????????????? | | ???????????????????# ##??????????????????? | | ???????????????????# a# # ##???????????????????? | | ???????????????????# $### ###????????????????????? | | ???????????????????# #?#u#??????????????????????? | | ???????????????????# #?# #??????????????????????? | | ??????????????????? #?# ??????????????????????? | | ?????????????????? ?###??????????????????????? | | ?????????????????? ??????????????????????????? | | ????????????????? ??????????????????????????? | | ????????????????### ??????????????????????????? | | ??????????????????# ??????????????????????????? | | ??????????????????# ??????????????????????????? | | ?????????????????? ??????????????????????????? | | ?????????????????? ??????????????????????????? | | ?????????????????? ??????????????????????????? | | ??????????????????? ??????????????????????????? | | ?????????????????????????????????????????????????? | | ?????????????????????????????????????????????????? | | ?????????????????????????????????????????????????? | | ?????????????????????????????????????????????????? | | ?????????????????????????????????????????????????? | | ?????????????????????????????????????????????????? | +----------------------------------------------------+ Best States ------------- Heat Dissipation 28 Energy Generation 12 Energy Capacity 265 Matter Stores 300 Matter Capacity 300 Sight Range 16 Terrain Scan Range 16 Terrain Scan Density 85 ECM Strength 1 Armor Coverage 150 Evasion (%) 55 Item Schematics ----------------- None Robot Schematics ------------------ None Fabricated ------------ Nothing Repaired ---------- Nothing Studied --------- None Alien Tech Used ----------------- None Achievements -------------- None Challenges ------------ None Game ------ Seed TerrainFortressDoomcannon Manual? 0 Play Time 00:19:06 Cumulative 36.6 hours Start 2026.09.17 @ 18:33:18 End 2026.09.17 @ 18:52:04 Sessions 1 Manual Loads 0 Difficulty Rogue Special Mode None Game No. 57 Rogue 57 Adventurer 0 Explorer 0 Win Type - Total 0 Types 0/0/0/0/0/0/0/0/0/0 Lore% 24 Gallery% 23 Achievement% 18 Wizard Run 0 Options --------- Layout 1 ASCII 0 Keyboard 0 Movement Mouse Keybinds 0 Fullscreen 1 Font 16/SmallcapsGlow Map View 50x40 Zoom Use 0% Tactical HUD 0 Map Filters NONE Filters NONE Steam SD RUN: 3314cb53-46f4-49d5-9877-eeaf4950ebb4